[Event "79th LOTTO Polish-ch 2022"]
[Site "Kruszwica"]
[Date "2022.05.09"]
[Round "1.8"]
[White "Socko, Bartosz"]
[Black "Szpar, Milosz"]
[Result "1/2-1/2"]
[ECO "D27"]
[WhiteElo "2636"]
[BlackElo "2434"]
[Annotator "TA"]
[PlyCount "60"]
[EventDate "2022.05.10"]
[EventType "k.o."]
[EventCountry "POL"]
[SourceTitle "playchess.com"]
[Source "ChessBase"]
[SourceQuality "1"]
[TimeControl "40/5400+30:1800+30"]

{[%evp 19,60,13,12,11,-10,16,0,0,-8,-20,-9,-24,-10,-18,-21,-18,-11,-16,-11,-11,-16,-14,-9,-35,-39,-76,-56,-69,-75,-52,-9,-13,0,-25,-13,-48,0,0,0,-18,0,0,0]} 1. d4 {[%emt 0:00:03]} d5 {[%emt 0:00:12]} 2. Nf3 {[%emt 0:00:15]} Nf6 {[%emt 0:00:10]} 3. c4 {[%emt 0:00:13]} dxc4 {[%emt 0:00:29]} 4. e3 {[%emt 0:00:08]} e6 {[%emt 0:00:10]} 5. Bxc4 {[%emt 0:00:07]} c5 {[%emt 0:00:20]} 6. O-O {[%emt 0:00:10]} a6 {[%emt 0:00:24]} 7. a4 {[%emt 0:03:14]} b6 {[%emt 0:02:08]} 8. Qe2 {[%emt 0:00:39]} Bb7 {[%emt 0:00:22]} 9. Rd1 {[%emt 0:00:12]} Nbd7 {[%emt 0:01:59]} 10. Nc3 {[%emt 0:00:24]} Qc7 $1 {[%emt 0:01:12]} 11. b3 {[%emt 0:07:30] D27: Queen's Gambit Accepted: Classical main line: 7 e4!? and 7 a4.} cxd4 {[%emt 0:13:24]} 12. exd4 {[%emt 0:02:33] [#] Black must now prevent Ng5.} Bb4 {[%emt 0:01:39]} 13. Na2 {[%emt 0:08:37]} Be7 {[%emt 0:02:13] [#]} 14. Bb2 $146 {[%emt 0:00:50][%cal Od4d5]} ({Predecessor:} 14. Bg5 h6 15. Bh4 Qf4 16. Bg3 Qe4 17. Qf1 Qf5 18. Bd3 Qa5 19. Nd2 O-O 20. Nc4 {½-½ (27) Milov,V (2668)-Markowski,T (2570) Geneve 2005}) 14... Nd5 {[%emt 0:03:58]} 15. Rac1 {[%emt 0:00:25] aiming for Bxd5.} Qd6 {[%emt 0:07:43]} 16. Nc3 {[%emt 0:10:22]} N7f6 {[%emt 0:02:40]} 17. Nxd5 {[%emt 0:04:13]} Nxd5 {[%emt 0:01:15]} 18. Ne5 {[%emt 0:00:17][%cal Oa4a5]} O-O {[%emt 0:01:27]} 19. Qg4 {[%emt 0:01:21]} Rac8 {[%emt 0:09:09]} 20. h4 {[%emt 0:12:39][%cal Bh2h4,Bh4h5,Bh5h6][%mdl 32]} Rc7 {[%emt 0:08:24]} 21. h5 {[%emt 0:01:34]} (21. Bxd5 $5 Bxd5 22. Ba3 $11) 21... Rfc8 {[%emt 0:03:12]} 22. Ra1 {[%emt 0:02:49]} Qd8 {[%emt 0:11:24]} 23. Rd3 {[%emt 0:06:02]} ({Reject} 23. Bxd5 Bxd5 24. h6 g6 $17) 23... Bf8 {[%emt 0:07:16][%cal Ob6b5]} 24. Rg3 {[%emt 0:01:57]} f5 {[%emt 0:04:57]} 25. Qd1 {[%emt 0:00:06]} Qe8 {[%emt 0:01:36]} 26. h6 {[%emt 0:13:01]} g6 $1 {[%emt 0:00:15]} 27. Qd2 {[%emt 0:00:29]} Bb4 {[%emt 0:03:40]} (27... b5 $5 {[%cal Rb5c4]} 28. Bd3 (28. axb5 axb5 29. Bd3 Nb4 $17) 28... Nb4 $17) 28. Qe2 {[%emt 0:03:49] The position is equal.} Bf8 {[%emt 0:01:35]} 29. Qd2 {[%emt 0:01:43]} Bb4 {[%emt 0:00:16]} 30. Qe2 {[%emt 0:01:06]} Bf8 {[%emt 0:01:57] Weighted Error Value: White=0.06 (flawless) /Black=0.06 (flawless)} 1/2-1/2

[Event "79th LOTTO Polish-ch 2022"]
[Site "Kruszwica"]
[Date "2022.05.11"]
[Round "2.1"]
[White "Socko, Bartosz"]
[Black "Tomczak, Jacek"]
[Result "0-1"]
[ECO "D71"]
[WhiteElo "2636"]
[BlackElo "2584"]
[Annotator "TA"]
[PlyCount "56"]
[EventDate "2022.05.10"]
[EventType "k.o."]
[EventCountry "POL"]
[SourceTitle "playchess.com"]
[Source "ChessBase"]
[SourceQuality "1"]
[TimeControl "40/5400+30:1800+30"]

{[%evp 9,56,6,14,25,23,-7,-9,-21,0,-101,-105,-121,-109,-180,-168,-205,-195,-204,-208,-297,-301,-306,-286,-306,-307,-227,-273,-422,-420,-401,-412,-579,-568,-762,-769,-1058,-1050,-29992,-29993,-29994,-29995,-29995,-883,-859,-856,-1713,-1701,-1582,-1591]} 1. d4 {[%emt 0:00:03]} Nf6 {[%emt 0:00:07]} 2. c4 {[%emt 0:00:06]} g6 {[%emt 0:00:16]} 3. g3 {[%emt 0:00:06]} Bg7 {[%emt 0:00:45]} 4. Bg2 {[%emt 0:00:07]} c5 {[%emt 0:00:42]} 5. dxc5 {[%emt 0:00:23]} Na6 {[%emt 0:05:58]} 6. Nc3 {[%emt 0:00:27] E60: King's Indian: Unusual lines and Fianchetto Variation without Nc3.} Nxc5 {[%emt 0:02:03]} 7. e4 {[%emt 0:00:06] [#]} Qa5 $146 {[%emt 0:05:09] And now ...Nfxe4 would win.} ({Predecessor:} 7... O-O 8. Nge2 d6 9. O-O Be6 10. b3 Qd7 11. Be3 Bh3 12. e5 Bxg2 13. exf6 Bf3 14. fxg7 Kxg7 15. Bxc5 {1-0 (15) Sunilduth Lyna,N (2637)-Hnydiuk,A (2402) Chess.com INT 2020}) 8. Bd2 {[%emt 0:37:32] The position is equal.} Qb6 {[%emt 0:08:26]} 9. Qe2 {[%emt 0:19:45] Against Nd3+} (9. Kf1 $11) 9... Qxb2 $17 {[%emt 0:08:07]} 10. Rb1 {[%emt 0:00:26]} Qc2 {[%emt 0:00:53][%cal Od7d5] Black is more active.} 11. Qd1 {[%emt 0:23:23] [#]} (11. e5 $17 Nd3+ 12. Kf1 Nxe5 13. Nf3) 11... Qxd1+ $1 $19 {[%emt 0:03:16]} 12. Kxd1 {[%emt 0:00:31]} d6 {[%emt 0:03:38]} 13. Ke2 {[%emt 0:01:08]} O-O {[%emt 0:04:21]} 14. Be3 {[%emt 0:04:36]} (14. Nh3 {was called for.}) 14... Be6 {[%emt 0:14:57]} 15. Nd5 {[%emt 0:00:17]} Nfxe4 {[%emt 0:00:34] [#] Strongly threatening ...Bxd5.} 16. Bxe4 {[%emt 0:00:32]} Nxe4 {[%emt 0:01:28]} 17. Nxe7+ {[%emt 0:00:13]} Kh8 {[%emt 0:00:04] Threatens to win with ...Nc3+.} 18. Kd3 {[%emt 0:00:18]} (18. Kf3 {was necessary.} b6 19. Kxe4) 18... Nc5+ {[%emt 0:00:47]} 19. Bxc5 {[%emt 0:00:40]} dxc5 {[%emt 0:00:03]} 20. Rxb7 {[%emt 0:00:52]} (20. Ne2 $142 Rad8+ 21. Nd5) 20... Rfd8+ {[%emt 0:01:22]} 21. Kc2 {[%emt 0:00:05]} Bxc4 {[%emt 0:01:15] ...Bd3+ is the strong threat.} 22. Nf3 {[%emt 0:01:10]} Bd3+ {[%emt 0:01:01] A strong pair of Bishops.} 23. Kb3 {[%emt 0:00:09]} Rab8 {[%emt 0:00:38]} 24. Rxb8 {[%emt 0:00:06]} Rxb8+ {[%emt 0:00:04]} 25. Ka4 {[%emt 0:00:06]} Bc2+ {[%emt 0:00:32]} (25... Rb4+ $142 26. Ka5 Rb6 27. Nxg6+ fxg6 28. Ka4 Bc2+ 29. Ka5 Bc3#) 26. Ka5 {[%emt 0:00:10] Black is clearly winning.} Be4 {[%emt 0:00:21]} 27. Ng5 {[%emt 0:00:17]} Bc3+ {[%emt 0:00:11]} 28. Ka6 {[%emt 0:00:04]} Bxh1 {[%emt 0:00:17] White did not feel at home in the position after the opening.  Weighted Error Value: White=1.10/Black=0.35} 0-1

[Event "79th LOTTO Polish-ch 2022"]
[Site "Kruszwica"]
[Date "2022.05.11"]
[Round "2.1"]
[White "Moranda, Wojciech"]
[Black "Bartel, Mateusz"]
[Result "1-0"]
[ECO "C84"]
[WhiteElo "2630"]
[BlackElo "2619"]
[Annotator "TA"]
[PlyCount "83"]
[EventDate "2022.05.10"]
[EventType "k.o."]
[EventCountry "POL"]
[SourceTitle "playchess.com"]
[Source "ChessBase"]
[SourceQuality "1"]
[TimeControl "40/5400+30:1800+30"]

{[%evp 13,83,18,24,2,15,6,5,0,0,6,28,21,47,47,47,23,23,23,23,26,27,33,33,29,50,30,26,31,28,40,45,38,50,44,65,37,48,43,45,47,54,19,18,0,0,0,106,107,212,200,215,208,193,214,201,192,220,202,323,315,398,470,690,700,868,895,964,909,1186,1173,1151,1122]} 1. e4 {[%emt 0:00:04]} e5 {[%emt 0:00:05]} 2. Nf3 {[%emt 0:00:13]} Nc6 {[%emt 0:00:03]} 3. Bb5 {[%emt 0:00:17][%cal Bf1b5,Bb5a4,Ba4b3,Bb3a2][%mdl 32]} a6 {[%emt 0:00:07]} 4. Ba4 {[%emt 0:00:09]} Nf6 {[%emt 0:00:09]} 5. O-O {[%emt 0:00:10]} Be7 {[%emt 0:00:04]} 6. d3 {[%emt 0:00:29]} b5 {[%emt 0:00:28]} 7. Bb3 {[%emt 0:00:06]} d6 {[%emt 0:00:04]} 8. a3 {[%emt 0:00:15] C84: Closed Ruy Lopez: Unusual White 6th moves.} Na5 {[%emt 0:00:08]} 9. Ba2 {[%emt 0:00:07]} c5 {[%emt 0:00:07]} 10. Bd2 $5 {[%emt 0:00:21][%mdl 4] [#] The position is equal. Exploring less charted territory.} Nc6 $146 {[%emt 0:03:21]} ({Predecessor:} 10... O-O 11. Nc3 Be6 12. Nd5 Nxd5 13. Bxd5 Bxd5 14. exd5 Qc7 15. b4 Nb7 16. c3 h6 {½-½ (48) Cornette,D (2463)-Moreno Tejera,E (2429) Linares 2018}) 11. Nc3 {[%emt 0:01:04]} Be6 {[%emt 0:18:05]} 12. Nd5 {[%emt 0:00:34]} Nd4 {[%emt 0:01:15]} 13. Nxd4 {[%emt 0:31:49]} exd4 {[%emt 0:00:35]} 14. Nxf6+ {[%emt 0:03:27]} Bxf6 {[%emt 0:00:11]} 15. Bxe6 {[%emt 0:00:12]} fxe6 {[%emt 0:00:04]} 16. Qh5+ {[%emt 0:01:01]} g6 $1 {[%emt 0:03:41]} 17. Qg4 {[%emt 0:03:40]} Qd7 {[%emt 0:00:04]} 18. f4 {[%emt 0:04:20]} O-O {[%emt 0:01:04]} 19. Rf2 {[%emt 0:04:37][%cal Bf1f2,Bf2e2,Be2e4][%mdl 32]} Rf7 {[%emt 0:02:15]} 20. Raf1 {[%emt 0:03:38]} Bg7 {[%emt 0:03:29]} 21. h4 {[%emt 0:01:39]} d5 $1 {[%emt 0:02:36]} 22. Re2 {[%emt 0:07:11]} dxe4 {[%emt 0:04:51]} 23. Rxe4 {[%emt 0:00:16]} Re8 {[%emt 0:00:04]} 24. Rfe1 {[%emt 0:02:03][%cal Re4e6]} (24. h5 $5 {[%cal Rh5g6]}) 24... Rf5 {[%emt 0:01:46]} 25. Qe2 {[%emt 0:02:57][%cal Re4e6]} e5 $1 {[%emt 0:00:33]} 26. g4 {[%emt 0:01:31]} Rff8 {[%emt 0:03:57]} 27. Kg2 {[%emt 0:12:44]} (27. b4 {is more complex.} Qe7 28. fxe5 Qxh4 29. bxc5 Bxe5 30. Qg2) 27... Qc6 {[%emt 0:12:15]} 28. Qf3 {[%emt 0:01:57]} Re7 {[%emt 0:02:44]} 29. b4 {[%emt 0:02:22]} Ra7 {[%emt 0:13:48]} (29... Ref7 $11 {keeps the balance.}) 30. bxc5 $1 $16 {[%emt 0:02:14]} a5 {[%emt 0:00:34]} (30... Qxc5 $2 31. Bb4 Qxc2+ 32. R4e2 $18) (30... Rc7 $16) 31. Rxe5 $18 {[%emt 0:01:23]} Qxf3+ {[%emt 0:02:50]} 32. Kxf3 {[%emt 0:00:08] Black must now prevent Re6.} Bxe5 {[%emt 0:00:02]} 33. Rxe5 {[%emt 0:00:11][%mdl 4096] Endgame KRR-KRB} b4 {[%emt 0:00:02] [#]} 34. a4 {[%emt 0:01:26]} ({Resist} 34. axb4 $6 axb4 35. Bxb4 Rb8) 34... Rd8 {[%emt 0:00:14]} 35. Ke4 {[%emt 0:01:40]} Kf7 {[%emt 0:00:02]} (35... Rc7 {keeps fighting.} 36. Be1 Rcd7) 36. f5 {[%emt 0:02:21]} Rad7 {[%emt 0:01:46]} 37. c6 {[%emt 0:01:50][%csl LRa5,LRd7]} Rc7 {[%emt 0:00:29] [#]} (37... Rd6 $142 38. c7 (38. Rxa5 Re8+ 39. Kf4 Rxc6 $16) 38... Ra8) 38. Re6 $1 {[%emt 0:00:23]} gxf5+ {[%emt 0:02:10]} 39. gxf5 {[%emt 0:00:08]} Rdc8 {[%emt 0:00:11]} 40. Kd5 {[%emt 0:00:00]} Re7 {[%emt 0:00:00]} 41. Rxe7+ {[%emt 0:01:44]} Kxe7 {[%emt 0:00:04]} 42. Bg5+ {[%emt 0:00:07] Weighted Error Value: White=0.05 (flawless) /Black=0.32} 1-0

[Event "79th LOTTO Polish-ch 2022"]
[Site "Kruszwica"]
[Date "2022.05.11"]
[Round "2.1"]
[White "Gajewski, Grzegorz"]
[Black "Wojtaszek, Radoslaw"]
[Result "0-1"]
[ECO "C55"]
[WhiteElo "2589"]
[BlackElo "2696"]
[Annotator "TA"]
[PlyCount "190"]
[EventDate "2022.05.10"]
[EventType "k.o."]
[EventCountry "POL"]
[SourceTitle "playchess.com"]
[Source "ChessBase"]
[SourceQuality "1"]
[TimeControl "40/5400+30:1800+30"]

{[%evp 12,190,35,33,47,4,17,20,41,0,-5,-8,-3,-8,18,21,12,0,13,0,31,39,51,20,27,7,6,4,5,0,0,0,9,8,10,12,34,31,23,24,15,34,27,0,0,-15,0,0,0,-19,-33,-43,-48,-39,-37,-41,-50,-58,-66,-81,-72,-74,-71,-70,-73,-158,-164,-177,-174,-166,-170,-269,-230,-218,-217,-188,-141,-142,-71,-71,-86,-72,-71,-78,-72,-72,-72,-72,-72,-146,-146,-183,-183,-183,-183,-183,-183,-176,-175,-175,-175,-175,-175,-175,-175,-175,-175,-164,-104,-128,-117,-118,-104,-117,-104,-124,-104,-104,-104,-104,-104,-104,-104,-104,-104,-104,-104,-104,-104,-104,-104,-104,-104,-104,-104,-104,-104,-104,-104,-104,0,-104,-104,-124,-124,-124,-117,-117,-117,-117,0,-117,-117,-117,-97,-124,-110,-124,-92,-92,-92,-92,-92,-92,-92,-92,-92,-92,-92,-92,-92,-5845,-6299,-6039,-5357,-2515,-1527,-1541,-1268,-29967,-29947]} 1. e4 {[%emt 0:00:03]} e5 {[%emt 0:00:04]} 2. Nf3 {[%emt 0:00:06]} Nc6 {[%emt 0:00:03]} 3. Bc4 {[%emt 0:00:07]} Nf6 {[%emt 0:00:03]} 4. d3 {[%emt 0:00:07]} Be7 {[%emt 0:00:04]} 5. O-O {[%emt 0:00:16]} O-O {[%emt 0:00:07]} 6. Re1 {[%emt 0:01:41]} d6 {[%emt 0:01:36]} 7. a3 {[%emt 0:02:58]} Nd7 $5 {[%emt 0:00:38][%mdl 4] Exploring less charted territory. C55: Two Knights: 4 d3, 4 d4 exd4 5 e5 and Max Lange Attack.} 8. Nc3 {[%emt 0:03:10]} Nb6 {[%emt 0:00:08]} 9. Ba2 {[%emt 0:00:04]} Kh8 {[%emt 0:00:15] The position is equal.} (9... Bg4 {feels hotter.} 10. h3 Bxf3 11. Qxf3 Nd4) 10. b4 {[%emt 0:07:46] [#]} (10. h3 $14) 10... Bg4 $146 {[%emt 0:22:23]} ({Predecessor:} 10... a6 11. Be3 f5 12. exf5 Bxf5 13. Bxb6 cxb6 14. Nd2 Nd4 15. Ne2 Nxe2+ 16. Qxe2 Rc8 {1-0 (38) Jumabayev,R (2610)-Mons,L (2483) Barcelona 2017}) 11. h3 {[%emt 0:01:50]} Bxf3 {[%emt 0:00:24]} 12. Qxf3 {[%emt 0:00:03]} Nd4 {[%emt 0:00:23]} 13. Qd1 {[%emt 0:00:06]} Bg5 {[%emt 0:00:05]} 14. Be3 {[%emt 0:03:54]} c6 {[%emt 0:02:51]} 15. Rf1 {[%emt 0:12:16]} Bf6 {[%emt 0:09:09]} 16. Rb1 {[%emt 0:16:07]} d5 {[%emt 0:08:01]} 17. Qd2 {[%emt 0:11:38]} Ne6 {[%emt 0:04:49]} 18. Bxb6 {[%emt 0:03:46]} axb6 {[%emt 0:00:07]} 19. exd5 {[%emt 0:00:03]} Nf4 {[%emt 0:03:20]} 20. dxc6 {[%emt 0:01:09]} Rxa3 {[%emt 0:00:33]} 21. Rb3 {[%emt 0:03:39]} ({Not} 21. cxb7 $2 Rxc3 $1 {[%mdl 512]} 22. g3 Nxh3+ 23. Kh2 Ra3 $19) 21... Rxb3 {[%emt 0:03:42]} 22. Bxb3 {[%emt 0:02:09]} bxc6 {[%emt 0:00:05]} 23. Qe3 {[%emt 0:01:37]} Qc7 {[%emt 0:09:56]} 24. Qe4 {[%emt 0:09:46]} Be7 {[%emt 0:02:48]} 25. b5 {[%emt 0:00:51]} cxb5 {[%emt 0:01:18]} 26. Nxb5 {[%emt 0:00:02]} Qc5 {[%emt 0:02:40]} 27. Bc4 {[%emt 0:00:03]} f5 {[%emt 0:02:03]} 28. Qb7 {[%emt 0:05:03]} Bh4 {[%emt 0:00:14]} 29. Qf3 {[%emt 0:02:34] Inhibits Ne2+.} Bg5 {[%emt 0:01:20]} 30. Re1 {[%emt 0:06:42][%cal Oh3h4]} e4 {[%emt 0:01:03]} 31. Qg3 {[%emt 0:00:45]} Bh6 {[%emt 0:00:45]} 32. Kf1 {[%emt 0:00:39]} Qb4 {[%emt 0:02:31]} 33. Nd4 {[%emt 0:01:20]} Qc3 {[%emt 0:05:12]} 34. Ne6 {[%emt 0:02:33]} Nxe6 {[%emt 0:00:03]} 35. Bxe6 {[%emt 0:00:02]} f4 {[%emt 0:01:49]} 36. Qh4 {[%emt 0:00:16]} e3 {[%emt 0:01:35]} 37. Qe7 {[%emt 0:03:11][%cal Re7f8]} g6 $36 {[%emt 0:00:05][%mdl 2048] White is under strong pressure.} 38. Bg4 {[%emt 0:00:25]} (38. Bb3 $142) 38... Qxc2 $17 {[%emt 0:01:23][%csl Ge3][%cal Rc2f2]} 39. Be2 {[%emt 0:00:02]} Qb2 {[%emt 0:08:24][%cal Of4f3]} 40. Qe4 {[%emt 0:00:00]} Bg7 {[%emt 0:00:00]} 41. Qf3 {[%emt 0:08:19]} (41. d4 {is a better defense.}) 41... exf2 {[%emt 0:07:57]} 42. Qxf2 {[%emt 0:00:21]} Bd4 {[%emt 0:00:04]} 43. Qf3 {[%emt 0:00:51]} Bc5 {[%emt 0:04:02]} (43... b5 $19 {Threatens to win with ...b4.} 44. Bd1 b4) 44. Qe4 {[%emt 0:01:29]} Rf5 {[%emt 0:00:28]} (44... Kg7 $142 {[%cal Of8e8] aiming for ...Re8!} 45. d4 Bxd4) 45. Qa8+ {[%emt 0:01:31]} Kg7 {[%emt 0:02:32][%cal Of4f3] ( -> ...f3!)} 46. Qa1 {[%emt 0:00:03]} Qxa1 {[%emt 0:04:52] Black is much more active.} (46... Qf6 {looks sharper.} 47. Bg4 Rd5 48. Qxf6+ Kxf6 49. Re6+ Kg5) 47. Rxa1 {[%emt 0:00:02][%mdl 4096] Endgame KRB-KRB} Be3 {[%emt 0:01:58]} 48. Ra7+ {[%emt 0:01:31]} Rf7 {[%emt 0:00:04]} 49. Rxf7+ {[%emt 0:05:20]} Kxf7 {[%emt 0:00:04] KB-KB} 50. d4 {[%emt 0:00:05]} (50. Ke1 $142) 50... Bxd4 {[%emt 0:00:15]} 51. Bc4+ {[%emt 0:00:04]} Kf6 {[%emt 0:00:15]} 52. Ke2 {[%emt 0:00:03]} Ke5 {[%emt 0:08:08]} 53. Bg8 {[%emt 0:02:01] [#]} h6 {[%emt 0:00:16]} 54. Bf7 {[%emt 0:00:39]} g5 {[%emt 0:00:06]} 55. Be8 {[%emt 0:00:03]} Kd5 {[%emt 0:02:48]} 56. Kf3 {[%emt 0:00:02]} Kc5 {[%emt 0:02:26]} 57. Ke4 {[%emt 0:03:44]} Bf2 {[%emt 0:00:14]} 58. Bf7 {[%emt 0:00:49]} b5 {[%emt 0:00:11]} 59. Kd3 {[%emt 0:00:08]} Kd6 {[%emt 0:01:23]} ({Black should play} 59... Bd4 $19 60. Be6 Bf2) 60. Ke4 {[%emt 0:00:06]} Ke7 {[%emt 0:00:08]} 61. Bh5 {[%emt 0:01:30]} b4 {[%emt 0:01:18]} 62. Bd1 {[%emt 0:00:08]} Kf6 {[%emt 0:00:24]} 63. Ba4 {[%emt 0:01:46]} Be1 {[%emt 0:00:10]} 64. Bd1 {[%emt 0:00:59]} Kg6 {[%emt 0:00:55]} 65. Ke5 {[%emt 0:00:29]} Bg3 {[%emt 0:01:18]} 66. Ke4 {[%emt 0:00:28]} Bf2 {[%emt 0:00:10]} 67. Ke5 {[%emt 0:00:10]} Bb6 {[%emt 0:00:30]} 68. Ke4 {[%emt 0:00:31]} Bc7 {[%emt 0:00:05]} 69. Kd5 {[%emt 0:03:16]} Bd8 {[%emt 0:00:04]} 70. Ke4 {[%emt 0:00:08]} Be7 {[%emt 0:00:26]} 71. Ke5 {[%emt 0:00:29]} Bf8 {[%emt 0:01:21]} 72. Ke4 {[%emt 0:00:06]} Bg7 {[%emt 0:01:33]} 73. Kd5 {[%emt 0:00:27]} Bc3 {[%emt 0:04:40]} 74. Ke4 {[%emt 0:00:08]} Kf6 {[%emt 0:00:04]} 75. Bb3 {[%emt 0:00:10]} Be1 {[%emt 0:00:06]} 76. Bd1 $1 {[%emt 0:00:07]} Ke6 {[%emt 0:00:43]} 77. Bb3+ {[%emt 0:00:08]} Kd6 {[%emt 0:00:03]} 78. Bd1 {[%emt 0:00:43]} Kc5 {[%emt 0:00:59] Strongly threatening ...Kc4.} 79. Bb3 {[%emt 0:00:33]} Kb5 {[%emt 0:00:15]} 80. Kd3 {[%emt 0:00:17]} Kc5 {[%emt 0:01:23]} 81. Ke4 $1 {[%emt 0:00:11]} Bf2 {[%emt 0:00:07]} 82. Kd3 {[%emt 0:00:10]} Kd6 {[%emt 0:01:09]} 83. Ke4 {[%emt 0:00:03]} Bb6 {[%emt 0:00:05]} 84. Kf5 {[%emt 0:00:42]} Bd8 {[%emt 0:00:06]} 85. Kg6 {[%emt 0:06:43]} Ke5 {[%emt 0:00:20]} 86. Kxh6 {[%emt 0:00:02]} Kd4 {[%emt 0:00:49] Hoping for ...Kc3.} 87. Kh5 {[%emt 0:00:06]} Kc3 {[%emt 0:00:17]} 88. Be6 {[%emt 0:00:14]} b3 {[%emt 0:00:02][%cal Bb4b3,Bb3b2][%mdl 32] ...b2 is the strong threat.} 89. Kg4 {[%emt 0:00:08]} b2 {[%emt 0:00:04]} 90. Bf5 {[%emt 0:00:03]} Kd2 {[%emt 0:00:13] And now ...Ke3 would win.} 91. Bg6 $2 {[%emt 0:04:53][%mdl 8192] Loses the game.} (91. Kf3 $17) 91... Ke3 $19 {[%emt 0:00:35]} 92. Bb1 {[%emt 0:00:17]} Be7 {[%emt 0:00:27]} 93. Bg6 {[%emt 0:00:09]} Kf2 {[%emt 0:00:16]} 94. Be4 {[%emt 0:00:12]} Bd8 {[%emt 0:00:02]} 95. h4 {[%emt 0:03:33]} Ke3 {[%emt 0:00:10] Weighted Error Value: White=0.12 (very precise) /Black=0.08 (flawless)} 0-1

[Event "79th LOTTO Polish-ch 2022"]
[Site "Kruszwica"]
[Date "2022.05.11"]
[Round "2.1"]
[White "Teclaf, Pawel"]
[Black "Piorun, Kacper"]
[Result "1/2-1/2"]
[ECO "C07"]
[WhiteElo "2537"]
[BlackElo "2635"]
[Annotator "TA"]
[PlyCount "61"]
[EventDate "2022.05.10"]
[EventType "k.o."]
[EventCountry "POL"]
[SourceTitle "playchess.com"]
[Source "ChessBase"]
[SourceQuality "1"]
[TimeControl "40/5400+30:1800+30"]

{[%evp 14,61,6,0,2,16,8,13,6,7,5,6,33,0,0,0,4,10,19,11,6,13,13,8,8,15,15,15,15,15,10,4,2,6,6,6,7,7,6,6,6,6,0,0,0,0,0,0,0,-20]} 1. e4 {[%emt 0:00:03]} e6 {[%emt 0:00:06]} 2. d4 {[%emt 0:00:04]} d5 {[%emt 0:00:03]} 3. Nd2 {[%emt 0:00:04]} c5 {[%emt 0:00:05]} 4. Ngf3 {[%emt 0:00:04]} cxd4 {[%emt 0:00:15]} 5. Nxd4 {[%emt 0:00:05]} Nc6 {[%emt 0:00:05]} 6. Bb5 {[%emt 0:00:24]} Bd7 {[%emt 0:00:06]} 7. Nxc6 {[%emt 0:00:03]} bxc6 {[%emt 0:00:05]} 8. Bd3 {[%emt 0:00:06]} Bd6 {[%emt 0:00:12] C07: French Tarrasch: 3...c5, 4 Ngf3 and 4 exd5 Qxd5.} 9. Qe2 {[%emt 0:01:00]} e5 $1 {[%emt 0:01:38][%mdl 4] outshines the older 9...Ne7.} 10. exd5 {[%emt 0:18:06]} cxd5 {[%emt 0:00:06]} 11. c4 {[%emt 0:00:04]} Ne7 {[%emt 0:00:13]} 12. cxd5 {[%emt 0:01:50]} Nxd5 {[%emt 0:00:10]} 13. Nc4 {[%emt 0:00:32][%csl LRd6,LRe5]} (13. Be4 $5 {[%cal Re4d5]} Nf4 14. Qa6 $11) 13... Bb4+ {[%emt 0:00:33] The position is equal.} 14. Bd2 {[%emt 0:18:27]} O-O {[%emt 0:00:26] [#] ...Nf4 is the strong threat.} 15. Bxh7+ $1 {[%emt 0:17:23]} Kxh7 {[%emt 0:00:06]} 16. Qe4+ {[%emt 0:00:02]} Kg8 {[%emt 0:01:20]} 17. Qxd5 {[%emt 0:01:45] [#]} Bxd2+ $146 {[%emt 0:09:27]} ({Predecessor:} 17... Rb8 18. Bxb4 Rxb4 19. Rd1 Qh4 20. Ne3 Rd4 21. Rxd4 exd4 22. g3 Qe7 23. Qxd4 Bb5 24. a4 Rd8 25. Qf4 g5 26. Qg4 f5 {0-1 (26) Sengupta,D (2527)-Mohammad Fahad,R (2339) Dhaka 2021}) 18. Qxd2 {[%emt 0:02:47]} Be6 {[%emt 0:00:09]} 19. Rc1 {[%emt 0:06:46]} Rc8 {[%emt 0:04:49]} 20. b3 {[%emt 0:00:32]} ({Don't go for} 20. Nxe5 $2 Rxc1+ 21. Qxc1 Qd5 $19) 20... Bxc4 {[%emt 0:10:42]} 21. bxc4 {[%emt 0:01:22]} Rc5 {[%emt 0:00:04]} 22. Qxd8 {[%emt 0:03:19]} Rxd8 $11 {[%emt 0:00:02][%mdl 4096] Endgame KRR-KRR} 23. Ke2 {[%emt 0:00:06]} Rd4 {[%emt 0:00:07]} 24. Rhd1 {[%emt 0:00:16] [#] Black must now prevent Rxd4.} Rdxc4 {[%emt 0:00:08]} 25. Rxc4 {[%emt 0:00:10]} Rxc4 {[%emt 0:00:03] KR-KR} 26. Rd8+ {[%emt 0:00:07]} Kh7 {[%emt 0:00:03]} 27. Rd7 {[%emt 0:00:04][%csl LRa7,LRf7]} Rc2+ {[%emt 0:00:24]} 28. Ke3 {[%emt 0:00:30]} Rxa2 {[%emt 0:00:15]} 29. Rxf7 {[%emt 0:00:03]} Kg6 {[%emt 0:00:04]} 30. Rb7 {[%emt 0:03:24]} Kf6 {[%emt 0:00:08]} 31. Ke4 {An interesting draw.  Weighted Error Value: White=0.02 (flawless) /Black=0.00 (flawless)} 1/2-1/2